fUST/lending_fUST_20240512
["ID","MTS","AMOUNT","RATE_DAILY","PERIOD"]
[326851521,1715509918939,-500000.0,0.0009,120]
[326851522,1715509918949,-500000.0,0.0009,120]
[326851523,1715509918958,-2498.53867206,0.0009,120]
[326851524,1715509918968,-151.0,0.00093616,120]
[326851525,1715509918977,-259.1,0.00094,120]
[326851526,1715509918986,-81301.3646,0.000944,120]
[326851527,1715509918995,-6052.84337636,0.0009488,60]
[326851528,1715509919005,-500000.0,0.00095,120]
[326851529,1715509919014,-500000.0,0.00095,120]
[326851530,1715509919023,-2498.53867206,0.00095,120]
[326851531,1715509919033,-285.164937,0.00095198,120]
[326851532,1715509919042,-529.58795504,0.000975,30]
[326851533,1715509919052,-90000.0,0.0009777,120]
[326851534,1715509919062,-166.666666,0.00098032,120]
[326851535,1715509919071,-164.239022,0.00099178,120]
[326851536,1715509919081,-5000.0,0.001,48]
[326851537,1715509919090,-902.6616,0.001,94]
[326851538,1715509919099,-1116.26724513,0.001,120]
[326851539,1715509919108,-2093.6606759,0.001,120]
[326851540,1715509919118,-1000.0,0.001,120]
[326851541,1715509919127,-500000.0,0.001,120]
[326851542,1715509919136,-4108.0,0.001,30]
[326851543,1715509919146,-1998.53867206,0.001,120]
[326851544,1715509919155,-1000.0,0.001,2]
[326851545,1715509919164,-151.0,0.001,120]
[326851546,1715509919175,-285.164937,0.00101168,120]
[326851547,1715509919184,-2000.0,0.00102818,120]
[326851548,1715509919194,-167.361754,0.00104579,120]
[326851549,1715509919204,-285.164937,0.00107138,120]
[326851550,1715509919219,-166.666666,0.00107771,120]
[326851551,1715509919228,-5000.0,0.00108,120]
[326851552,1715509919237,-1920.82620263,0.0011,120]
[326851553,1715509919247,-285.164937,0.00113108,120]
[326851554,1715509919256,-151.0,0.00115425,120]
[326851555,1715509919265,-1000.0,0.00115547,90]
[326851556,1715509919275,-166.666666,0.00117509,120]
[326851557,1715509919285,-164.239022,0.00118082,120]
[326851558,1715509919294,-285.164937,0.00119077,120]
[326851559,1715509919303,-291464.87848917,0.0012,120]
[326851562,1715510235461,540.69969178,0.00039828,30]
[326851570,1715510495310,-154.75239617,0.00020913,2]
[326851571,1715510495334,-2012.23413501,0.00020913,2]
[326851572,1715510495358,-164.074545,0.00023562,2]
[326851573,1715510502906,-186.94483115,0.00027,2]
[326851574,1715510509636,-12984.499871,0.00032242,2]
[326851575,1715510509662,-10689.38493145,0.00034,5]
[326851576,1715510519910,-935.67306823,0.000356,30]
[326851577,1715510519935,-3044.9413658,0.00037,2]
[326851578,1715510519958,-6933.01849963,0.0003943,2]
[326851579,1715510519982,-272.81954873,0.00039728,2]
[326851580,1715510520005,-472.97709924,0.00039828,2]
[326851581,1715510520030,-300.68955585,0.00039828,4]
[326851582,1715510520054,-297.7748663,0.0004,15]
[326851583,1715510520078,-169.40800833,0.0004,120]
[326851584,1715510527056,-464.61107643,0.00040254,120]
[326851585,1715510527079,-166.666666,0.00040255,2]
[326851586,1715510527102,-166.666666,0.00041353,2]
[326851587,1715510527125,-166.666666,0.0004245,2]
[326851588,1715510527148,-166.666666,0.00043548,2]
[326851589,1715510527172,-166.666666,0.00044645,2]
[326851590,1715510530491,166.666666,0.00041473,2]
[326851591,1715510530753,166.666666,0.00042603,2]
[326851592,1715510531067,166.666666,0.00043734,2]
[326851593,1715510531265,166.666666,0.00044865,2]
[326851594,1715510531825,306.5572699,0.00020813,2]
[326851595,1715510535559,472.97709924,0.00034,2]
[326851596,1715510537937,210.48268909,0.00035,4]
[326851597,1715510538250,6933.01849963,0.0003366,2]
[326851598,1715510547608,935.67306823,0.000356,30]
[326851599,1715510553570,156.25703472,0.00034,2]
[326851600,1715510555939,210.48268909,0.00035,4]
[326851601,1715510558250,6933.01849963,0.0003366,2]
[326851602,1715510565600,683.88114298,0.000356,30]
[326851603,1715510581968,210.48268909,0.00035,4]
[326851604,1715510582260,1934.60636614,0.0003366,2]
[326851605,1715510598114,210.48268909,0.000356,4]
[326851606,1715510622576,210.48268909,0.000356,4]
[326851607,1715510643993,210.48268909,0.000356,4]
[326851608,1715510661938,300.7344423,0.000356,4]
[326851609,1715510798816,154.75239617,9.999e-05,2]
[326851610,1715510807507,154.75239617,0.00043215,4]
[326851611,1715510842270,387.17589703,0.00043215,120]
[326851612,1715510880070,2419.08868289,0.00045,2]
[326851613,1715510892098,10000.0,0.0004,2]
[326851614,1715510902889,2572.69798789,0.0004,2]
[326851615,1715510913266,1326.11519755,0.00035,2]
[326851616,1715510920181,10000.0,0.0003,2]
[326851617,1715510929647,10000.0,0.0003,2]
[326851618,1715510945575,4813.05516885,0.0003,2]
[326851619,1715511015490,164.239022,0.00023562,2]
[326851653,1715511032558,-1949.94483115,0.0003,2]
[326851655,1715511032567,-2319.22030365,0.00034999,5]
[326851657,1715511032579,-8370.1646278,0.00034999,5]
[326851658,1715511032598,-4951.66022776,0.00035,2]
[326851812,1715511040831,-184.080649,0.00031277,2]
[326851813,1715511040841,-116.31485088,0.00033409,2]
[326851827,1715511043482,-67.76579812,0.00033409,2]
[326851828,1715511043491,-3722.22457469,0.00035,2]
[326851829,1715511043501,-184.080649,0.0003554,2]
[326851830,1715511043510,-2537.45113816,0.00037,2]
[326851831,1715511043519,-7427.30201211,0.0004,2]
[326851832,1715511043528,-532.8183368,0.00043214,2]
[326851833,1715511043538,-7580.91131711,0.00045,2]
[326851834,1715511043547,-156.9806603,0.00047245,2]
[326851835,1715511043556,-387.17589703,0.00048998,120]
[326851836,1715511043565,-163.67484041,0.00048999,4]
[326851837,1715511043574,-205.19131335,0.00049,10]
[326851838,1715511043584,-293.9161103,0.0005,120]
[326851839,1715511043593,-505.62401456,0.0005,120]
[326851840,1715511043602,-513.18586719,0.0005,10]
[326851841,1715511043611,-7940.0,0.000518,120]
[326851842,1715511043620,-256.66390675,0.00054,120]
[326851843,1715511043629,-3281.67,0.00054784,3]
[326851844,1715511043638,-405.35934412,0.00054792,4]
[326851845,1715511043648,-983.05031374,0.00054792,2]
[326851846,1715511043657,-991.56649864,0.00054792,4]
[326851847,1715511043666,-288.53731085,0.00054792,4]
[326851848,1715511043676,-154.75239617,0.00054792,4]
[326851849,1715511043685,-500.0,0.00054793,30]
[326851850,1715511043695,-155.60491391,0.00054793,10]
[326851851,1715511043704,-154.85987657,0.00054793,2]
[326851852,1715511043714,-500.0,0.00054794,120]
[326851853,1715511043724,-500.0,0.00054794,120]
[326851854,1715511043734,-500.0,0.00054794,120]
[326851855,1715511043743,-500.0,0.00054794,2]
[326851856,1715511043752,-500.0,0.00054794,120]
[326851857,1715511043761,-500.0,0.00054794,120]
[326851858,1715511043770,-500.0,0.00054794,120]
[326851859,1715511043780,-500.0,0.00054794,120]
[326851860,1715511043789,-500.0,0.00054794,120]
[326851861,1715511043798,-500.0,0.00054794,120]
[326851862,1715511043807,-541.2,0.00054794,120]
[326851863,1715511043817,-500.0,0.00054794,120]
[326851864,1715511043826,-500.0,0.00054794,120]
[326851865,1715511043836,-1467.39,0.00054794,120]
[326851866,1715511043848,-498.40750367,0.00054794,120]
[326851867,1715511043857,-500.0,0.00054794,120]
[326851868,1715511043866,-1714.81,0.00054794,21]
[326851869,1715511043876,-586.33,0.00054794,120]
[326851870,1715511043891,-500.0,0.00054794,120]
[326851871,1715511043900,-14490.53,0.00054794,120]
[326851872,1715511043909,-522.23312359,0.00054794,120]
[326851873,1715511043919,-503.76,0.00054794,120]
[326851874,1715511043928,-3671.75,0.00054794,2]
[326851875,1715511043937,-500.0,0.00054794,120]
[326851876,1715511043946,-500.0,0.00054794,120]
[326851877,1715511043956,-354.01575205,0.00054794,120]
[326851878,1715511043965,-500.0,0.00054794,120]
[326851879,1715511043975,-500.0,0.00054794,120]
[326851880,1715511043984,-324.4534823,0.00054794,120]
[326851881,1715511043993,-4511.71,0.00054794,120]
[326851882,1715511044002,-500.0,0.00054794,120]
[326851883,1715511044011,-16076.49,0.00054794,120]
[326851884,1715511044021,-190.06756498,0.00054794,120]
[326851885,1715511044030,-500.0,0.00054794,120]
[326851886,1715511044040,-500.0,0.00054794,120]
[326851887,1715511044050,-197.12702371,0.00054794,20]
[326851888,1715511044060,-500.0,0.00055879,2]
[326851889,1715511044069,-5123.79,0.0005588,3]
[326851890,1715511044078,-790.51054256,0.00055889,30]
[326851891,1715511044087,-500.0,0.00055889,2]
[326851892,1715511044097,-2358.18792927,0.0005589,61]
[326851893,1715511044107,-500.0,0.0005589,120]
[326851894,1715511044116,-500.0,0.0005589,120]
[326851895,1715511044126,-500.0,0.0005589,120]
[326851896,1715511044135,-500.0,0.0005589,120]
[326851897,1715511044145,-500.0,0.0005589,120]
[326851898,1715511044154,-500.0,0.0005589,120]
[326851899,1715511044163,-541.2,0.0005589,120]
[326851900,1715511044172,-500.0,0.0005589,120]
[326851901,1715511044181,-500.0,0.0005589,120]
[326851902,1715511044191,-1467.39,0.0005589,120]
[326851903,1715511044200,-500.0,0.0005589,120]
[326851904,1715511044208,-1714.81,0.0005589,21]
[326851905,1715511044218,-586.33,0.0005589,120]
[326851906,1715511044227,-500.0,0.0005589,120]
[326851907,1715511044236,-6052.74630424,0.0005589,120]
[326851918,1715511046315,-8437.78369576,0.0005589,120]
[326851919,1715511046325,-503.76,0.0005589,120]
[326851920,1715511046336,-3671.75,0.0005589,2]
[326851921,1715511046345,-500.0,0.0005589,120]
[326851922,1715511046354,-500.0,0.0005589,120]
[326851923,1715511046363,-500.0,0.0005589,120]
[326851924,1715511046373,-500.0,0.0005589,120]
[326851925,1715511046385,-4511.71,0.0005589,120]
[326851926,1715511046395,-500.0,0.0005589,120]
[326851927,1715511046405,-16076.49,0.0005589,120]
[326851928,1715511046424,-500.6296539,0.0005589,120]
[326851929,1715511046434,-500.0,0.0005589,120]
[326851930,1715511046443,-500.0,0.00056985,2]
[326851931,1715511046453,-249.37391938,0.00056986,120]
[326851932,1715511046462,-500.0,0.00056986,120]
[326851933,1715511046471,-500.0,0.00056986,120]
[326851934,1715511046481,-500.0,0.00056986,120]
[326851935,1715511046490,-500.0,0.00056986,120]
[326851936,1715511046499,-500.0,0.00056986,120]
[326851937,1715511046508,-541.2,0.00056986,120]
[326851938,1715511046517,-500.0,0.00056986,120]
[326851939,1715511046527,-500.0,0.00056986,120]
[326851940,1715511046536,-1467.39,0.00056986,120]
[326851941,1715511046546,-500.0,0.00056986,120]
[326851942,1715511046555,-586.33,0.00056986,120]
[326851943,1715511046564,-500.0,0.00056986,120]
[326851944,1715511046574,-14490.53,0.00056986,120]
[326851945,1715511046583,-503.76,0.00056986,120]
[326851946,1715511046592,-3671.75,0.00056986,2]
[326851947,1715511046601,-500.0,0.00056986,120]
[326851948,1715511046611,-500.0,0.00056986,120]
[326851949,1715511046620,-500.0,0.00056986,120]
[326851950,1715511046629,-584.56991852,0.00056986,120]
[326851951,1715511046638,-4511.71,0.00056986,120]
[326851952,1715511046648,-500.0,0.00056986,120]
[326851953,1715511046657,-16076.49,0.00056986,120]
[326851954,1715511046667,-500.0,0.00056986,120]
[326851955,1715511046678,-500.0,0.00058081,2]
[326851956,1715511046688,-599.76807592,0.00058082,120]
[326851957,1715511046697,-417.88550832,0.00058082,120]
[326851958,1715511046707,-500.0,0.00058082,120]
[326851959,1715511046716,-500.0,0.00058082,120]
[326851960,1715511046726,-500.0,0.00058082,120]
[326851961,1715511046735,-541.2,0.00058082,120]
[326851962,1715511046746,-500.0,0.00058082,120]
[326851963,1715511046755,-500.0,0.00058082,120]
[326851964,1715511046764,-1467.39,0.00058082,120]
[326851965,1715511046774,-500.0,0.00058082,120]
[326851966,1715511046783,-586.33,0.00058082,120]
[326851967,1715511046792,-500.0,0.00058082,120]
[326851968,1715511046802,-14490.53,0.00058082,120]
[326851969,1715511046811,-3671.75,0.00058082,2]
[326851970,1715511046820,-503.76,0.00058082,120]
[326851971,1715511046830,-500.0,0.00058082,120]
[326851972,1715511046839,-500.0,0.00058082,120]
[326851973,1715511046848,-363.37702944,0.00058082,120]
[326851975,1715511798987,154.75239617,0.00024382,2]
[326851976,1715511805748,17039.67143752,0.00020913,2]
[326851977,1715511806941,283.4284457,0.00024382,2]
[326851978,1715511808237,5026.84762243,0.00020913,2]
[326851982,1715512041493,904.83466521,9.999e-05,2]
[326851983,1715512071838,1042.26396896,9.999e-05,2]
[326851984,1715512160812,285.26297634,0.00015,2]
[326851985,1715512204260,154.75239617,0.0002,2]
[326852056,1715512232643,-1042.26396896,0.00020907,2]
[326852058,1715512232653,-154.75239617,0.00020908,2]
[326852060,1715512232662,-2012.23413501,0.00020908,2]
[326852062,1715512232671,-2064.7720175,0.00020912,2]
[326852505,1715512240639,-503.01188397,0.00020912,2]
[326852525,1715512240808,-582.11611046,0.00020912,2]
[326852527,1715512240817,-154.75239617,0.00020912,2]
[326852529,1715512240826,-166.666666,0.00021918,2]
[326852531,1715512240835,-166.666666,0.00022431,2]
[326852533,1715512240845,-166.666666,0.00022944,2]
[326852535,1715512240853,-166.666666,0.00023456,2]
[326852537,1715512240863,-171.098962,0.00023562,2]
[326852539,1715512240872,-166.666666,0.00023969,2]
[326852540,1715512240881,-166.666666,0.00024482,2]
[326852542,1715512240890,-186.94483115,0.00027,2]
[326852544,1715512240900,-217.0,0.0003,2]
[326852546,1715512240909,-151.79254834,0.00033439,7]
[326852548,1715512240918,-154.84256979,0.00033441,7]
[326852550,1715512240927,-681.34238439,0.00034,5]
[326852643,1715512243945,-10008.04254706,0.00034,5]
[326852644,1715512243955,-151.0179077,0.00034024,7]
[326852645,1715512243964,-151.79254834,0.00034279,7]
[326852646,1715512243973,-153.15121778,0.00034619,7]
[326852647,1715512243983,-158.81785743,0.00035076,7]
[326852648,1715512243992,-151.79254834,0.00035096,7]
[326852649,1715512244001,-158.81785743,0.00035239,7]
[326852650,1715512244011,-154.84256979,0.00035298,7]
[326852651,1715512244020,-151.79254834,0.00035393,7]
[326852652,1715512244031,-935.67306823,0.000356,30]
[326852653,1715512244040,-154.75239617,0.0003589,2]
[326852655,1715512244049,-151.79254834,0.000359,7]
[326852656,1715512244059,-158.81785743,0.0003591,7]
[326852658,1715512244068,-151.79254834,0.00036008,7]
[326852660,1715512244077,-171.098962,0.00036164,2]
[326852662,1715512244086,-151.0179077,0.00036507,7]
[326852664,1715512244096,-217.0,0.00037,2]
[326852666,1715512244105,-2537.45113816,0.00037,2]
[326852668,1715512244114,-151.79254834,0.00037258,7]
[326852670,1715512244123,-151.0179077,0.00038467,7]
[326852672,1715512244133,-158.81785743,0.00038852,7]
[326852674,1715512244143,-1723.92400157,0.0004,4]
[326852677,1715512244153,-387.17589703,0.0004,120]
[326852678,1715512244162,-151.0179077,0.00040677,30]
[326852680,1715512244171,-153.15121778,0.00040685,30]
[326852682,1715512244180,-930.17254207,0.00041081,4]
[326852684,1715512244189,-154.84256979,0.00041402,30]
[326852686,1715512244198,-151.79254834,0.00041555,30]
[326852687,1715512244207,-158.81785743,0.00041733,30]
[326852688,1715512244216,-151.79254834,0.00042093,30]
[326852689,1715512244226,-158.81785743,0.00042489,30]
[326852690,1715512244236,-185.40801927,0.0004313,2]
[326852691,1715512244245,-154.84256979,0.00043149,30]
[326852692,1715512244254,-3621.49,0.0004323,3]
[326852693,1715512244264,-5067.15,0.0004323,3]
[326852694,1715512244274,-500.0,0.00043236,31]
[326852697,1715512244293,-247.62554806,0.00043236,31]
[326852720,1715512244497,-252.37445194,0.00043236,31]
[326852722,1715512244507,-303.26832084,0.00043236,31]
[326852724,1715512244523,-196.73167916,0.00043236,31]
[326852726,1715512244534,-500.0,0.00043236,31]
[326852728,1715512244545,-500.0,0.00043236,31]
[326852730,1715512244556,-500.0,0.00043236,31]
[326852732,1715512244567,-107.59174384,0.00043236,31]
[326852734,1715512244580,-392.40825616,0.00043236,31]
[326852736,1715512244591,-500.0,0.00043236,31]
[326852738,1715512244604,-500.0,0.00043236,31]
[326852741,1715512244616,-500.0,0.00043236,31]
[326852743,1715512244626,-500.0,0.00043236,31]
[326852745,1715512244637,-500.0,0.00043236,31]
[326852747,1715512244647,-120.06307071,0.00043236,31]
[326852749,1715512244661,-157.48362403,0.00043236,31]
[326852751,1715512244674,-500.0,0.00043236,31]
[326852752,1715512244686,-500.0,0.00043236,31]
[326852754,1715512244696,-500.0,0.00043236,31]
[326852755,1715512244707,-500.0,0.00043236,31]
[326852756,1715512244718,-500.0,0.00043236,31]
[326852757,1715512244729,-500.0,0.00043236,31]
[326852758,1715512244740,-500.0,0.00043236,31]
[326852759,1715512244750,-557.02675019,0.00043236,31]
[326852760,1715512244760,-500.0,0.00043236,31]
[326852761,1715512244771,-500.0,0.00043236,31]
[326852762,1715512244782,-500.0,0.00043236,31]
[326852763,1715512244792,-500.0,0.00043236,31]
[326852764,1715512244802,-500.0,0.00043236,31]
[326852765,1715512244813,-500.0,0.00043236,31]
[326852767,1715512244824,-500.0,0.00043236,31]
[326852769,1715512244835,-500.0,0.00043236,31]
[326852771,1715512244846,-500.0,0.00043236,31]
[326852773,1715512244857,-500.0,0.00043236,31]
[326852775,1715512244868,-500.0,0.00043236,31]
[326852777,1715512244878,-500.0,0.00043236,31]
[326852779,1715512244889,-500.0,0.00043236,31]
[326852781,1715512244900,-476.54669163,0.00043236,31]
[326852783,1715512244910,-500.0,0.00043236,31]
[326852785,1715512244921,-500.0,0.00043236,31]
[326852787,1715512244932,-476.73046565,0.00043236,31]
[326852789,1715512244944,-500.0,0.00043236,31]
[326852791,1715512244955,-500.0,0.00043236,31]
[326852793,1715512244965,-500.0,0.00043236,31]
[326852795,1715512244976,-500.0,0.00043236,31]
[326852797,1715512244986,-500.0,0.00043236,31]
[326852800,1715512244997,-500.0,0.00043236,31]
[326852801,1715512245008,-500.0,0.00043236,31]
[326852803,1715512245018,-500.0,0.00043236,31]
[326852805,1715512245027,-500.0,0.00043236,31]
[326852807,1715512245039,-500.0,0.00043236,31]
[326852809,1715512245049,-500.0,0.00043236,31]
[326852810,1715512245059,-500.0,0.00043236,31]
[326852813,1715512245070,-217.0,0.00043237,2]
[326852815,1715512245080,-904.23695715,0.00043238,4]
[326852817,1715512245092,-293.646176,0.00043239,4]
[326852819,1715512245102,-307.58461738,0.00043239,31]
[326852821,1715512245113,-4716.37585854,0.0004324,7]
[326852823,1715512245124,-20908.86744405,0.0004324,30]
[326853381,1715512686413,330.6132766,9.999e-05,2]
[326853382,1715513418872,284.68255756,9.999e-05,2]
[326853455,1715513433196,-2012.23413501,0.00020903,2]
[326853457,1715513433206,-293.646176,0.00020904,2]
[326853459,1715513433215,-904.23695715,0.00020904,2]
[326853460,1715513433224,-500.0,0.00020905,2]
[326853462,1715513433233,-500.0,0.00020905,2]
[326853464,1715513433242,-500.0,0.00020905,2]
[326853465,1715513433251,-500.0,0.00020905,2]
[326853467,1715513433260,-500.0,0.00020905,2]
[326853468,1715513433269,-500.0,0.00020905,2]
[326853469,1715513433278,-500.0,0.00020905,2]
[326853470,1715513433287,-500.0,0.00020905,2]
[326853471,1715513433296,-500.0,0.00020905,2]
[326853472,1715513433305,-385.15911726,0.00020905,2]
[326853473,1715513433314,-2358.18792927,0.00020905,7]
[326853474,1715513433322,-1465.16194337,0.00020905,7]
[326853475,1715513433332,-330.4112314,0.00020908,2]
[326853477,1715513433340,-49427.79340059,0.0002091,2]
[326853478,1715513433352,-459.25048671,0.0002091,2]
[326853479,1715513433361,-1001.64557,0.00020913,2]
[326853480,1715513433371,-3792.41359914,0.00020913,2]
[326853481,1715513433382,-12517.54124318,0.00020913,2]
[326853482,1715513433392,-843.315,0.00020913,2]
[326853489,1715513438615,-301.33996059,0.00020806,2]
[326853490,1715513438626,-33.05653994,0.00020905,2]
[326853494,1715513438842,-130.32061837,0.00020905,2]
[326853495,1715513438851,-500.0,0.00020905,2]
[326853496,1715513438861,-500.0,0.00020905,2]
[326853498,1715513438870,-2160.00003232,0.00020905,2]
[326853500,1715513438879,-157.48362403,0.00020905,2]
[326853501,1715513438889,-500.0,0.00020905,2]
[326853503,1715513438899,-500.0,0.00020905,2]
[326853505,1715513438908,-2160.00003232,0.00020905,2]
[326853507,1715513438918,-500.0,0.00020905,2]
[326853509,1715513438927,-500.0,0.00020905,2]
[326853510,1715513438936,-261.70550945,0.00020905,2]
[326853520,1715513441135,-284.41982086,0.00020904,2]
[326853521,1715513441145,-44.12276161,0.00020905,2]
[326853522,1715513442070,-194.17172894,0.00020905,2]
[326853523,1715513442082,-184.62186361,0.00020905,2]
[326853524,1715513442103,-261.546,0.00020905,2]
[326853567,1715513444048,-1713.83216871,0.00020905,2]
[326853568,1715513444058,-500.0,0.00020905,2]
[326853569,1715513444068,-500.0,0.00020905,2]
[326853570,1715513444079,-2160.00003232,0.00020905,2]
[326853571,1715513444090,-500.0,0.00020905,2]
[326853572,1715513444100,-2160.00003232,0.00020905,2]
[326853573,1715513444109,-500.0,0.00020905,2]
[326853574,1715513444119,-500.0,0.00020905,2]
[326853575,1715513444129,-500.0,0.00020905,2]
[326853576,1715513444138,-2160.00003232,0.00020905,2]
[326853577,1715513444147,-500.0,0.00020905,2]
[326853578,1715513444159,-500.0,0.00020905,2]
[326853579,1715513444169,-2160.00003232,0.00020905,2]
[326853580,1715513444178,-557.02675019,0.00020905,2]
[326853581,1715513444188,-500.0,0.00020905,2]
[326853582,1715513444198,-2160.00003232,0.00020905,2]
[326853583,1715513444207,-261.42163855,0.00020905,2]
[326853584,1715513444217,-500.0,0.00020905,2]
[326853585,1715513444228,-2160.00003232,0.00020905,2]
[326853586,1715513444238,-500.0,0.00020905,2]
[326853587,1715513444248,-2160.00003232,0.00020905,2]
[326853588,1715513444258,-500.0,0.00020905,2]
[326853589,1715513444268,-500.0,0.00020905,2]
[326853590,1715513444277,-2160.00003232,0.00020905,2]
[326853591,1715513444288,-500.0,0.00020905,2]
[326853592,1715513444298,-500.0,0.00020905,2]
[326853593,1715513444307,-576.73046565,0.00020905,2]
[326853594,1715513444317,-500.0,0.00020905,2]
[326853595,1715513444327,-2160.00003232,0.00020905,2]
[326853596,1715513444336,-500.0,0.00020905,2]
[326853597,1715513444346,-500.0,0.00020905,2]
[326853598,1715513444355,-2160.00003232,0.00020905,2]
[326853599,1715513444365,-500.0,0.00020905,2]
[326853600,1715513444374,-2160.00003232,0.00020905,2]
[326853601,1715513444384,-2160.00003232,0.00020905,2]
[326853602,1715513444393,-2160.00003232,0.00020905,2]
[326853603,1715513444402,-790.58121538,0.00020905,2]
[326853604,1715513444692,-481.0,0.00020905,2]
[326853605,1715513444704,-888.41881694,0.00020905,2]
[326853606,1715513444713,-2160.00003232,0.00020905,2]
[326853607,1715513444723,-630.82825466,0.00020905,2]
[326853608,1715513444735,-1529.17177766,0.00020905,2]
[326853609,1715513444744,-2160.00003232,0.00020905,2]
[326853610,1715513444754,-2160.00003232,0.00020905,2]
[326853611,1715513444763,-2160.00003232,0.00020905,2]
[326853612,1715513444773,-2160.00003232,0.00020905,2]
[326853613,1715513444783,-2160.00003232,0.00020905,2]
[326853614,1715513444792,-2160.00003232,0.00020905,2]
[326853615,1715513444801,-2160.00003232,0.00020905,2]
[326853616,1715513444811,-2160.00003232,0.00020905,2]
[326853617,1715513444820,-2160.00003232,0.00020905,2]
[326853618,1715513444829,-1979.78541828,0.00020905,2]
[326853646,1715513505521,713.0309286,0.00017,2]
[326853647,1715513626860,182.779338,0.0001993,2]
[326853648,1715513655452,267.41858897,0.000189,2]
[326853649,1715513956646,178.27905931,0.000189,2]
[326853650,1715514258423,150.0,0.000189,2]
[326853652,1715514559591,150.0,0.000189,2]
[326853690,1715514632868,-360.39776454,0.00020455,2]
[326853692,1715514632878,-7886.43652278,0.00020551,2]
[326853694,1715514632887,-982.288413,0.00020552,2]
[326853696,1715514632897,-1465.79568205,0.00020552,2]
[326853698,1715514632906,-34042.40590617,0.00020554,2]
[326853985,1715514638632,-467.65814808,0.00020554,2]
[326854533,1715514643719,-33447.13656571,0.00020554,2]
[326854535,1715514643729,-500.0,0.00020554,2]
[326854537,1715514643740,-215.54773518,0.00020554,2]
[326854539,1715514643750,-500.0,0.00020554,2]
[326854541,1715514643760,-500.0,0.00020554,2]
[326854543,1715514643769,-500.0,0.00020554,2]
[326854545,1715514643779,-500.0,0.00020554,2]
[326854547,1715514643788,-500.0,0.00020554,2]
[326854549,1715514643798,-500.0,0.00020554,2]
[326854551,1715514643807,-310.40948746,0.00020554,2]
[326854553,1715514643817,-500.0,0.00020554,2]
[326854555,1715514643826,-500.0,0.00020554,2]
[326854557,1715514643836,-4151.76755298,0.00020554,2]
[326854558,1715514643846,-500.0,0.00020554,2]
[326854560,1715514643855,-500.0,0.00020554,2]
[326854562,1715514643864,-500.0,0.00020554,2]
[326854565,1715514643873,-4151.76755298,0.00020554,2]
[326854568,1715514643882,-500.0,0.00020554,2]
[326854570,1715514643892,-500.0,0.00020554,2]
[326854572,1715514643900,-4151.76755298,0.00020554,2]
[326854574,1715514643910,-500.0,0.00020554,2]
[326854576,1715514643919,-500.0,0.00020554,2]
[326854578,1715514643928,-500.0,0.00020554,2]
[326854580,1715514643937,-4151.76755298,0.00020554,2]
[326854582,1715514643947,-500.0,0.00020554,2]
[326854584,1715514643956,-176.41088325,0.00020554,2]
[326854586,1715514643965,-4151.76755298,0.00020554,2]
[326854588,1715514643974,-315.68231483,0.00020554,2]
[326854590,1715514643983,-500.0,0.00020554,2]
[326854592,1715514643993,-500.0,0.00020554,2]
[326854593,1715514644001,-4151.76755298,0.00020554,2]
[326854596,1715514644011,-500.0,0.00020554,2]
[326854597,1715514644020,-4151.76755298,0.00020554,2]
[326854599,1715514644030,-500.0,0.00020554,2]
[326854601,1715514644040,-4151.76755298,0.00020554,2]
[326854603,1715514644049,-4151.76755298,0.00020554,2]
[326854605,1715514644058,-303.40845219,0.00020554,2]
[326854607,1715514644068,-500.0,0.00020554,2]
[326854609,1715514644077,-4151.76755298,0.00020554,2]